[Event "*** SCC Grand Prix: Titled Tuesday Blitz"]
[Site "Chess.com"]
[Date "2020.07.21"]
[Round "7"]
[White "BabyBoss31"]
[Black "kleopl"]
[Result "0-1"]
[WhiteElo "2206"]
[BlackElo "2430"]
[TimeControl "180+1"]
[EndTime "11:19:57 PDT"]
[Termination "kleopl won by resignation"]

1. d4 {[%clk 0:03:00.9]} 1... Nf6 {[%clk 0:02:59.6]} 2. Bf4 {[%clk 0:02:58.8]}
2... d5 {[%clk 0:02:56.6]} 3. e3 {[%clk 0:02:54.1]} 3... c5 {[%clk 0:02:55.6]}
4. c3 {[%clk 0:02:51.4]} 4... Nc6 {[%clk 0:02:55.6]} 5. Nd2 {[%clk 0:02:50.3]}
5... cxd4 {[%clk 0:02:49.9]} 6. exd4 {[%clk 0:02:43.6]} 6... Qb6 {[%clk
0:02:36.7]} 7. Qb3 {[%clk 0:02:37.2]} 7... Qxb3 {[%clk 0:02:35.4]} 8. axb3
{[%clk 0:02:33.7]} 8... Bf5 {[%clk 0:02:22.7]} 9. Ngf3 {[%clk 0:02:28.5]} 9...
e6 {[%clk 0:02:22.7]} 10. b4 {[%clk 0:02:22]} 10... Be7 {[%clk 0:02:15.9]} 11.
b5 {[%clk 0:02:08.4]} 11... Nd8 {[%clk 0:02:15.7]} 12. Nb3 {[%clk 0:01:58.9]}
12... Nh5 {[%clk 0:02:01.9]} 13. Bc7 {[%clk 0:01:49]} 13... Kd7 {[%clk
0:01:56.6]} 14. Bg3 {[%clk 0:01:20.3]} 14... f6 {[%clk 0:01:47.5]} 15. Be2
{[%clk 0:01:16.4]} 15... Nxg3 {[%clk 0:01:44.3]} 16. hxg3 {[%clk 0:01:14.9]}
16... Nf7 {[%clk 0:01:29.5]} 17. Nh4 {[%clk 0:00:41]} 17... Be4 {[%clk
0:01:25.9]} 18. Nd2 {[%clk 0:00:34.4]} 18... g5 {[%clk 0:01:15.2]} 19. Nhf3
{[%clk 0:00:33.1]} 19... Bg6 {[%clk 0:01:14.1]} 20. b4 {[%clk 0:00:20.2]} 20...
Rhc8 {[%clk 0:01:07]} 21. Ra3 {[%clk 0:00:19.4]} 21... Nd6 {[%clk 0:00:59.4]}
22. Nb3 {[%clk 0:00:18.9]} 22... b6 {[%clk 0:00:53.5]} 23. Nbd2 {[%clk
0:00:15.1]} 23... Rc7 {[%clk 0:00:51.3]} 24. O-O {[%clk 0:00:14.5]} 24... Rac8
{[%clk 0:00:44.8]} 25. Rfa1 {[%clk 0:00:14.3]} 25... Rxc3 {[%clk 0:00:43.6]} 26.
Rxa7+ {[%clk 0:00:13.9]} 26... R3c7 {[%clk 0:00:43.2]} 27. Nb3 {[%clk
0:00:12.3]} 27... Ne4 {[%clk 0:00:33.2]} 28. R7a6 {[%clk 0:00:09.1]} 28... Rb7
{[%clk 0:00:31.5]} 29. Nc5+ {[%clk 0:00:07.1]} 29... bxc5 {[%clk 0:00:27.2]} 30.
bxc5 {[%clk 0:00:08]} 30... Nxc5 {[%clk 0:00:20.1]} 31. dxc5 {[%clk 0:00:08.9]}
31... Rxc5 {[%clk 0:00:19]} 32. Nd4 {[%clk 0:00:08.6]} 32... e5 {[%clk
0:00:17.7]} 33. Nc6 {[%clk 0:00:08.9]} 33... Bd6 {[%clk 0:00:15.7]} 34. Na5
{[%clk 0:00:08.7]} 34... Rbxb5 {[%clk 0:00:14.2]} 35. Bxb5+ {[%clk 0:00:08.1]}
35... Rxb5 {[%clk 0:00:15.1]} 36. Ra7+ {[%clk 0:00:08.7]} 36... Ke6 {[%clk
0:00:14.9]} 37. Nb7 {[%clk 0:00:08.9]} 37... Bc5 {[%clk 0:00:13.1]} 38. R7a6+
{[%clk 0:00:08]} 38... Kf7 {[%clk 0:00:11]} 39. Nxc5 {[%clk 0:00:07.6]} 39...
Rxc5 {[%clk 0:00:11]} 40. Ra7+ {[%clk 0:00:08.3]} 40... Ke6 {[%clk 0:00:10.8]}
41. R1a6+ {[%clk 0:00:08.6]} 41... Kf5 {[%clk 0:00:10.7]} 42. Ra1 {[%clk
0:00:08.9]} 42... g4 {[%clk 0:00:10.8]} 43. Rd1 {[%clk 0:00:08.3]} 43... d4
{[%clk 0:00:11]} 44. Rd7 {[%clk 0:00:08.1]} 44... Ke4 {[%clk 0:00:09.9]} 45. Ra7
{[%clk 0:00:07.8]} 45... Rc4 {[%clk 0:00:07]} 46. Ra3 {[%clk 0:00:07.9]} 46...
Kd5 {[%clk 0:00:06.2]} 47. Ra5+ {[%clk 0:00:07.1]} 47... Rc5 {[%clk 0:00:06.5]}
48. Ra3 {[%clk 0:00:06.8]} 48... e4 {[%clk 0:00:06.1]} 49. Ra4 {[%clk
0:00:07.3]} 49... Rc4 {[%clk 0:00:06.2]} 50. Ra5+ {[%clk 0:00:07.8]} 50... Ke6
{[%clk 0:00:05.8]} 51. Ra6+ {[%clk 0:00:07.5]} 51... Kd5 {[%clk 0:00:03.7]} 52.
Ra5+ {[%clk 0:00:07.8]} 52... Rc5 {[%clk 0:00:04.1]} 53. Ra4 {[%clk 0:00:07.3]}
53... d3 {[%clk 0:00:03.9]} 54. Kf1 {[%clk 0:00:07.7]} 54... Rc4 {[%clk
0:00:04.1]} 55. Ra5+ {[%clk 0:00:08.1]} 55... Kd4 {[%clk 0:00:04.2]} 56. Ra8
{[%clk 0:00:08.4]} 56... Bf5 {[%clk 0:00:03.3]} 57. Ke1 {[%clk 0:00:08.7]} 57...
Kc3 {[%clk 0:00:03]} 58. Rc1+ {[%clk 0:00:07.8]} 58... Kd4 {[%clk 0:00:03.3]}
59. Rxc4+ {[%clk 0:00:08.2]} 59... Kxc4 {[%clk 0:00:04.2]} 60. Kd2 {[%clk
0:00:08.9]} 60... Kd4 {[%clk 0:00:04.3]} 61. Ra4+ {[%clk 0:00:09]} 61... Ke5
{[%clk 0:00:04.4]} 62. Ra5+ {[%clk 0:00:09.6]} 62... Ke6 {[%clk 0:00:04.2]} 63.
Ra6+ {[%clk 0:00:10.1]} 63... Ke5 {[%clk 0:00:04]} 64. Ra5+ {[%clk 0:00:10.6]}
64... Ke6 {[%clk 0:00:04.4]} 65. Ra6+ {[%clk 0:00:11.2]} 65... Ke5 {[%clk
0:00:04.8]} 66. Ra7 {[%clk 0:00:10.7]} 66... Bg6 {[%clk 0:00:04.6]} 67. Ra6
{[%clk 0:00:10.4]} 67... f5 {[%clk 0:00:04.3]} 68. Ra5+ {[%clk 0:00:10.5]} 68...
Ke6 {[%clk 0:00:04.4]} 69. Ra6+ {[%clk 0:00:11.1]} 69... Ke5 {[%clk 0:00:04.9]}
70. Ra5+ {[%clk 0:00:11.7]} 70... Kf6 {[%clk 0:00:05.1]} 71. Ra6+ {[%clk
0:00:12.4]} 71... Kg5 {[%clk 0:00:05.4]} 72. Ra5 {[%clk 0:00:12.9]} 72... h5
{[%clk 0:00:05.2]} 73. Ke3 {[%clk 0:00:12.9]} 73... h4 {[%clk 0:00:04.7]} 74.
gxh4+ {[%clk 0:00:13.1]} 74... Kxh4 {[%clk 0:00:05.6]} 75. Rd5 {[%clk
0:00:12.7]} 75... Kg5 {[%clk 0:00:05.7]} 76. Rc5 {[%clk 0:00:12.1]} 76... g3
{[%clk 0:00:05.2]} 77. fxg3 {[%clk 0:00:11.9]} 77... Kg4 {[%clk 0:00:05.5]} 78.
Rc6 {[%clk 0:00:11.3]} 78... Bh5 {[%clk 0:00:05.1]} 79. Rc8 {[%clk 0:00:11.1]}
79... Kxg3 {[%clk 0:00:04.5]} 80. Rg8+ {[%clk 0:00:11.7]} 80... Bg4 {[%clk
0:00:04.9]} 81. Rf8 {[%clk 0:00:08.3]} 81... Kxg2 {[%clk 0:00:04.9]} 82. Rf6
{[%clk 0:00:08.5]} 82... Kg3 {[%clk 0:00:05]} 83. Rf8 {[%clk 0:00:08.4]} 83...
Kg2 {[%clk 0:00:04.5]} 84. Rf6 {[%clk 0:00:08.7]} 84... Kf1 {[%clk 0:00:04.3]}
85. Rf8 {[%clk 0:00:08.8]} 85... Ke1 {[%clk 0:00:04.4]} 86. Rd8 {[%clk 0:00:09]}
86... Bf3 {[%clk 0:00:02.5]} 87. Rd4 {[%clk 0:00:08.8]} 87... f4+ {[%clk
0:00:02.5]} 88. Kxf4 {[%clk 0:00:09]} 88... d2 {[%clk 0:00:02.8]} 89. Ke3 {[%clk
0:00:06.1]} 89... d1=Q {[%clk 0:00:02.3]} 90. Rxd1+ {[%clk 0:00:06.3]} 90...
Kxd1 {[%clk 0:00:03.2]} 0-1

[Event "*** SCC Grand Prix: Titled Tuesday Blitz"]
[Site "Chess.com"]
[Date "2020.07.21"]
[Round "7"]
[White "Haapana"]
[Black "yuliagok"]
[Result "1-0"]
[WhiteElo "2331"]
[BlackElo "2100"]
[TimeControl "180+1"]
[EndTime "11:19:57 PDT"]
[Termination "Haapana won by checkmate"]

1. d4 {[%clk 0:03:00.9]} 1... Nf6 {[%clk 0:02:58.6]} 2. c4 {[%clk 0:03:00.4]}
2... e6 {[%clk 0:02:58.7]} 3. Nf3 {[%clk 0:02:59.1]} 3... b6 {[%clk 0:02:57.4]}
4. g3 {[%clk 0:02:58.6]} 4... Bb7 {[%clk 0:02:56.2]} 5. Bg2 {[%clk 0:02:57.6]}
5... c6 {[%clk 0:02:55.8]} 6. O-O {[%clk 0:02:54]} 6... d5 {[%clk 0:02:54.4]} 7.
Bf4 {[%clk 0:02:27.4]} 7... Be7 {[%clk 0:02:51.1]} 8. Ne5 {[%clk 0:02:22.2]}
8... Nfd7 {[%clk 0:02:46.8]} 9. Nd2 {[%clk 0:02:17.2]} 9... O-O {[%clk 0:02:45]}
10. Nd3 {[%clk 0:02:13.4]} 10... Na6 {[%clk 0:02:34.7]} 11. Rc1 {[%clk
0:02:04.1]} 11... Rc8 {[%clk 0:02:29.7]} 12. h4 {[%clk 0:01:59.6]} 12... c5
{[%clk 0:02:24.3]} 13. cxd5 {[%clk 0:01:56.8]} 13... exd5 {[%clk 0:02:21.4]} 14.
Nf3 {[%clk 0:01:30.3]} 14... Nb4 {[%clk 0:02:10.7]} 15. Nxb4 {[%clk 0:01:16.7]}
15... cxb4 {[%clk 0:02:09.7]} 16. Qa4 {[%clk 0:01:04.6]} 16... a5 {[%clk
0:02:05.2]} 17. Ne5 {[%clk 0:01:04.6]} 17... Nxe5 {[%clk 0:02:03.1]} 18. Bxe5
{[%clk 0:01:05.5]} 18... Bf6 {[%clk 0:01:52.8]} 19. Rxc8 {[%clk 0:01:01]} 19...
Bxc8 {[%clk 0:01:48.8]} 20. Qc6 {[%clk 0:00:58.9]} 20... Bxe5 {[%clk 0:01:41.4]}
21. dxe5 {[%clk 0:00:59.8]} 21... Bg4 {[%clk 0:01:36.4]} 22. Bxd5 {[%clk
0:00:53.1]} 22... Bxe2 {[%clk 0:01:34.5]} 23. Re1 {[%clk 0:00:53.5]} 23... Bg4
{[%clk 0:01:32.4]} 24. e6 {[%clk 0:00:38.7]} 24... fxe6 {[%clk 0:01:30.9]} 25.
Bxe6+ {[%clk 0:00:39.1]} 25... Bxe6 {[%clk 0:01:29.5]} 26. Qxe6+ {[%clk
0:00:38.4]} 26... Kh8 {[%clk 0:01:29.4]} 27. Qe7 {[%clk 0:00:33.9]} 27... Qxe7
{[%clk 0:01:27.2]} 28. Rxe7 {[%clk 0:00:34.8]} 28... h6 {[%clk 0:01:21.1]} 29.
Re6 {[%clk 0:00:30.2]} 29... Rb8 {[%clk 0:01:16.7]} 30. Kf1 {[%clk 0:00:28.4]}
30... Kg8 {[%clk 0:01:16.1]} 31. Ke2 {[%clk 0:00:28.8]} 31... Kf7 {[%clk
0:01:15.6]} 32. Rc6 {[%clk 0:00:29.2]} 32... b5 {[%clk 0:01:11.3]} 33. Ke3
{[%clk 0:00:28.2]} 33... Re8+ {[%clk 0:01:07.6]} 34. Kf3 {[%clk 0:00:27.8]}
34... Rd8 {[%clk 0:01:03.5]} 35. Rc2 {[%clk 0:00:17.6]} 35... a4 {[%clk
0:01:00.5]} 36. Re2 {[%clk 0:00:12.1]} 36... a3 {[%clk 0:00:51.8]} 37. b3 {[%clk
0:00:10]} 37... Rc8 {[%clk 0:00:50.6]} 38. Re4 {[%clk 0:00:09.7]} 38... Rc3+
{[%clk 0:00:49]} 39. Kg2 {[%clk 0:00:06.2]} 39... Rc2 {[%clk 0:00:47.9]} 40.
Rxb4 {[%clk 0:00:06.8]} 40... Rxa2 {[%clk 0:00:47.1]} 41. Rxb5 {[%clk
0:00:07.4]} 41... Rb2 {[%clk 0:00:46.5]} 42. b4 {[%clk 0:00:07.8]} 42... a2
{[%clk 0:00:45.8]} 43. Ra5 {[%clk 0:00:08.3]} 43... g5 {[%clk 0:00:42.3]} 44.
hxg5 {[%clk 0:00:07.3]} 44... hxg5 {[%clk 0:00:41.7]} 45. Kf3 {[%clk 0:00:07.5]}
45... g4+ {[%clk 0:00:40.3]} 46. Kxg4 {[%clk 0:00:06.7]} 46... Rxf2 {[%clk
0:00:37.4]} 47. b5 {[%clk 0:00:04.3]} 47... Rb2 {[%clk 0:00:36.7]} 48. Kh4
{[%clk 0:00:03.8]} 48... Rb4+ {[%clk 0:00:33.9]} 49. g4 {[%clk 0:00:04]} 49...
Ke6 {[%clk 0:00:31.6]} 50. Rxa2 {[%clk 0:00:02.8]} 50... Rxb5 {[%clk 0:00:29.8]}
51. Rf2 {[%clk 0:00:03.3]} 51... Rb1 {[%clk 0:00:27]} 52. g5 {[%clk 0:00:04.2]}
52... Rh1+ {[%clk 0:00:24.4]} 53. Kg4 {[%clk 0:00:04.7]} 53... Rg1+ {[%clk
0:00:24.3]} 54. Kh5 {[%clk 0:00:04.5]} 54... Rh1+ {[%clk 0:00:21.3]} 55. Kg6
{[%clk 0:00:05.4]} 55... Ke7 {[%clk 0:00:18.9]} 56. Kg7 {[%clk 0:00:05.5]} 56...
Ke8 {[%clk 0:00:17]} 57. g6 {[%clk 0:00:06.4]} 57... Ra1 {[%clk 0:00:15.9]} 58.
Rf8+ {[%clk 0:00:07.3]} 58... Ke7 {[%clk 0:00:15]} 59. Rf7+ {[%clk 0:00:08.2]}
59... Ke8 {[%clk 0:00:15]} 60. Kg8 {[%clk 0:00:08.2]} 60... Rg1 {[%clk
0:00:13.3]} 61. g7 {[%clk 0:00:09.1]} 61... Rh1 {[%clk 0:00:12.6]} 62. Rf5
{[%clk 0:00:06.7]} 62... Ke7 {[%clk 0:00:10.4]} 63. Re5+ {[%clk 0:00:05.7]}
63... Kf6 {[%clk 0:00:09.7]} 64. Re8 {[%clk 0:00:04.7]} 64... Rg1 {[%clk
0:00:07.9]} 65. Rf8+ {[%clk 0:00:05.2]} 65... Ke7 {[%clk 0:00:07.4]} 66. Rf4
{[%clk 0:00:04.8]} 66... Rg5 {[%clk 0:00:05.9]} 67. Rh4 {[%clk 0:00:04]} 67...
Rg1 {[%clk 0:00:05]} 68. Kh7 {[%clk 0:00:03]} 68... Kf7 {[%clk 0:00:04.6]} 69.
Rf4+ {[%clk 0:00:03.4]} 69... Ke7 {[%clk 0:00:03.6]} 70. g8=Q {[%clk 0:00:04.3]}
70... Rxg8 {[%clk 0:00:02.6]} 71. Kxg8 {[%clk 0:00:05.2]} 71... Ke6 {[%clk
0:00:02]} 72. Kg7 {[%clk 0:00:05.6]} 72... Ke5 {[%clk 0:00:02.4]} 73. Rf6 {[%clk
0:00:06.1]} 73... Kd5 {[%clk 0:00:02.7]} 74. Kg6 {[%clk 0:00:06.7]} 74... Ke5
{[%clk 0:00:02.8]} 75. Kg5 {[%clk 0:00:07.2]} 75... Kd5 {[%clk 0:00:03.4]} 76.
Kf4 {[%clk 0:00:07.5]} 76... Kd4 {[%clk 0:00:03.6]} 77. Rd6+ {[%clk 0:00:06.5]}
77... Kc5 {[%clk 0:00:04.1]} 78. Ke5 {[%clk 0:00:06.2]} 78... Kc4 {[%clk
0:00:04.3]} 79. Rd5 {[%clk 0:00:06.6]} 79... Kb4 {[%clk 0:00:04.1]} 80. Kd4
{[%clk 0:00:05.6]} 80... Kb3 {[%clk 0:00:03.6]} 81. Rc5 {[%clk 0:00:05.8]} 81...
Kb4 {[%clk 0:00:03.1]} 82. Rc3 {[%clk 0:00:03.5]} 82... Ka4 {[%clk 0:00:03]} 83.
Kc5 {[%clk 0:00:02.7]} 83... Ka5 {[%clk 0:00:02.1]} 84. Ra3# {[%clk 0:00:03.6]}
1-0

[Event "*** SCC Grand Prix: Titled Tuesday Blitz"]
[Site "Chess.com"]
[Date "2020.07.21"]
[Round "7"]
[White "Shuvalov"]
[Black "FloMaster111"]
[Result "0-1"]
[WhiteElo "2482"]
[BlackElo "2284"]
[TimeControl "180+1"]
[EndTime "11:20:38 PDT"]
[Termination "FloMaster111 won by resignation"]

1. e4 {[%clk 0:02:57.3]} 1... c6 {[%clk 0:02:59.7]} 2. d4 {[%clk 0:02:56.8]}
2... d5 {[%clk 0:02:59.8]} 3. exd5 {[%clk 0:02:57.7]} 3... cxd5 {[%clk
0:02:59.9]} 4. c4 {[%clk 0:02:58.6]} 4... Nf6 {[%clk 0:03:00.3]} 5. Nc3 {[%clk
0:02:59.2]} 5... e6 {[%clk 0:03:00.7]} 6. Nf3 {[%clk 0:02:57.8]} 6... Be7 {[%clk
0:02:59.2]} 7. cxd5 {[%clk 0:02:57.3]} 7... Nxd5 {[%clk 0:02:59.5]} 8. Bd3
{[%clk 0:02:54.6]} 8... O-O {[%clk 0:02:59.2]} 9. O-O {[%clk 0:02:52.9]} 9...
Nc6 {[%clk 0:02:58.1]} 10. Re1 {[%clk 0:02:52.3]} 10... Nxc3 {[%clk 0:02:57]}
11. bxc3 {[%clk 0:02:51.9]} 11... b6 {[%clk 0:02:57.6]} 12. Bc2 {[%clk
0:02:40.3]} 12... Bb7 {[%clk 0:02:56.5]} 13. Qd3 {[%clk 0:02:40.4]} 13... g6
{[%clk 0:02:55.9]} 14. Bh6 {[%clk 0:02:39]} 14... Re8 {[%clk 0:02:55.9]} 15.
Rad1 {[%clk 0:02:24.7]} 15... Rc8 {[%clk 0:02:51.9]} 16. a4 {[%clk 0:02:09]}
16... Qd5 {[%clk 0:02:42.1]} 17. Qe3 {[%clk 0:01:47.2]} 17... Qh5 {[%clk
0:02:29.1]} 18. Bg5 {[%clk 0:01:41.6]} 18... Na5 {[%clk 0:02:17.7]} 19. Bxe7
{[%clk 0:01:38.9]} 19... Rxe7 {[%clk 0:02:16.8]} 20. Ne5 {[%clk 0:01:37.9]}
20... Nc4 {[%clk 0:01:58.4]} 21. Qg3 {[%clk 0:01:37.7]} 21... Nxe5 {[%clk
0:01:46.2]} 22. Rxe5 {[%clk 0:01:38.6]} 22... Qh6 {[%clk 0:01:37.3]} 23. Bb3
{[%clk 0:01:35.7]} 23... Rec7 {[%clk 0:01:35.3]} 24. c4 {[%clk 0:01:32.1]} 24...
Ba6 {[%clk 0:01:17.7]} 25. c5 {[%clk 0:01:30.4]} 25... bxc5 {[%clk 0:01:14.1]}
26. dxc5 {[%clk 0:01:20.4]} 26... Rxc5 {[%clk 0:00:56.5]} 27. Rxc5 {[%clk
0:01:19]} 27... Rxc5 {[%clk 0:00:56.3]} 28. Rd8+ {[%clk 0:01:11.7]} 28... Kg7
{[%clk 0:00:55.5]} 29. h4 {[%clk 0:01:05.7]} 29... Qc1+ {[%clk 0:00:50.9]} 30.
Kh2 {[%clk 0:01:05.8]} 30... Qc3 {[%clk 0:00:38.9]} 31. Qd6 {[%clk 0:01:02.1]}
31... Qe5+ {[%clk 0:00:27.8]} 32. Qxe5+ {[%clk 0:01:01.2]} 32... Rxe5 {[%clk
0:00:28.7]} 33. Rd7 {[%clk 0:00:58]} 33... Re4 {[%clk 0:00:10]} 34. Rxa7 {[%clk
0:00:55.9]} 34... Bc4 {[%clk 0:00:09.5]} 35. Bxc4 {[%clk 0:00:55]} 35... Rxc4
{[%clk 0:00:09.5]} 36. g3 {[%clk 0:00:54.6]} 36... Kf6 {[%clk 0:00:09.1]} 37.
Kg2 {[%clk 0:00:54.5]} 37... h5 {[%clk 0:00:08.8]} 38. a5 {[%clk 0:00:54]} 38...
Ra4 {[%clk 0:00:08.9]} 39. Kf3 {[%clk 0:00:54.4]} 39... e5 {[%clk 0:00:08]} 40.
Ke3 {[%clk 0:00:53.6]} 40... Ke6 {[%clk 0:00:07.3]} 41. Kd3 {[%clk 0:00:52.8]}
41... f5 {[%clk 0:00:07.4]} 42. Ra6+ {[%clk 0:00:51.8]} 42... Kf7 {[%clk
0:00:04.8]} 43. Ra8 {[%clk 0:00:49.1]} 43... Ra2 {[%clk 0:00:04.6]} 44. Ke3
{[%clk 0:00:48.3]} 44... Ra3+ {[%clk 0:00:04.5]} 45. Ke2 {[%clk 0:00:45.6]}
45... Ra2+ {[%clk 0:00:04.9]} 46. Ke3 {[%clk 0:00:43]} 46... Ra3+ {[%clk
0:00:05.4]} 47. Kd2 {[%clk 0:00:42.4]} 47... Ra2+ {[%clk 0:00:05.9]} 48. Ke1
{[%clk 0:00:41.2]} 48... Ra1+ {[%clk 0:00:06.1]} 49. Ke2 {[%clk 0:00:41]} 49...
Ra2+ {[%clk 0:00:07]} 50. Kf1 {[%clk 0:00:41.5]} 50... Ra1+ {[%clk 0:00:06.9]}
51. Kg2 {[%clk 0:00:41.8]} 51... Ra2 {[%clk 0:00:07.4]} 52. a6 {[%clk
0:00:41.7]} 52... Kf6 {[%clk 0:00:06.9]} 53. a7 {[%clk 0:00:39.2]} 53... Kg7
{[%clk 0:00:06.6]} 54. Kf3 {[%clk 0:00:39]} 54... Ra3+ {[%clk 0:00:06.5]} 55.
Ke2 {[%clk 0:00:39.2]} 55... e4 {[%clk 0:00:06.3]} 56. Kd2 {[%clk 0:00:38.3]}
56... Ra2+ {[%clk 0:00:06.4]} 57. Kc3 {[%clk 0:00:38.3]} 57... Ra1 {[%clk
0:00:03.5]} 58. Kb2 {[%clk 0:00:37.6]} 58... Ra5 {[%clk 0:00:03.6]} 59. Kb3
{[%clk 0:00:37.7]} 59... Ra1 {[%clk 0:00:03.8]} 60. Kb4 {[%clk 0:00:37.7]} 60...
Rb1+ {[%clk 0:00:03.9]} 61. Kc5 {[%clk 0:00:37.5]} 61... Rc1+ {[%clk 0:00:04.5]}
62. Kd6 {[%clk 0:00:36.1]} 62... Rd1+ {[%clk 0:00:04]} 63. Ke6 {[%clk
0:00:34.3]} 63... Ra1 {[%clk 0:00:04.1]} 64. Ke5 {[%clk 0:00:33.6]} 64... Ra2
{[%clk 0:00:04.3]} 65. Kd5 {[%clk 0:00:32.1]} 65... Ra5+ {[%clk 0:00:04.7]} 66.
Kc6 {[%clk 0:00:31.7]} 66... Ra1 {[%clk 0:00:05.6]} 67. Kb5 {[%clk 0:00:30.4]}
67... Rb1+ {[%clk 0:00:06]} 68. Kc5 {[%clk 0:00:30]} 68... Rc1+ {[%clk
0:00:06.4]} 69. Kd4 {[%clk 0:00:30.1]} 69... Rd1+ {[%clk 0:00:06.6]} 70. Ke5
{[%clk 0:00:29]} 70... Ra1 {[%clk 0:00:06.5]} 71. Kf4 {[%clk 0:00:28.4]} 71...
Ra3 {[%clk 0:00:06]} 72. Kg5 {[%clk 0:00:28.4]} 72... Ra6 {[%clk 0:00:06]} 73.
Rb8 {[%clk 0:00:16.8]} 73... Rxa7 {[%clk 0:00:05.5]} 74. Rb6 {[%clk 0:00:17.4]}
74... Ra2 {[%clk 0:00:04.7]} 75. Rxg6+ {[%clk 0:00:17.4]} 75... Kh7 {[%clk
0:00:03.5]} 76. Rh6+ {[%clk 0:00:15.9]} 76... Kg7 {[%clk 0:00:03.5]} 77. Rg6+
{[%clk 0:00:16.1]} 77... Kh7 {[%clk 0:00:03.9]} 78. Re6 {[%clk 0:00:15.8]} 78...
Rxf2 {[%clk 0:00:03.7]} 79. Re7+ {[%clk 0:00:16.3]} 79... Kg8 {[%clk 0:00:03.8]}
80. Kxh5 {[%clk 0:00:16.5]} 80... Kf8 {[%clk 0:00:03.5]} 81. Re5 {[%clk
0:00:16.3]} 81... Kf7 {[%clk 0:00:03.4]} 82. Kg5 {[%clk 0:00:16.4]} 82... Rg2
{[%clk 0:00:03.1]} 83. Rxf5+ {[%clk 0:00:15.8]} 83... Ke6 {[%clk 0:00:03.6]} 84.
Rf6+ {[%clk 0:00:12.7]} 84... Ke5 {[%clk 0:00:03.8]} 85. Rf5+ {[%clk 0:00:12.8]}
85... Ke6 {[%clk 0:00:04]} 86. Kf4 {[%clk 0:00:12]} 86... Rf2+ {[%clk
0:00:03.5]} 87. Kxe4 {[%clk 0:00:11.5]} 87... Rxf5 {[%clk 0:00:04.4]} 88. g4
{[%clk 0:00:11.4]} 88... Rf8 {[%clk 0:00:04.7]} 89. h5 {[%clk 0:00:11]} 89...
Kf6 {[%clk 0:00:05.1]} 90. Kf4 {[%clk 0:00:10.9]} 90... Ra8 {[%clk 0:00:05.6]}
91. g5+ {[%clk 0:00:10.6]} 91... Kg7 {[%clk 0:00:06]} 92. Kf5 {[%clk 0:00:11]}
92... Ra5+ {[%clk 0:00:06.4]} 93. Kg4 {[%clk 0:00:11.4]} 93... Kf7 {[%clk
0:00:06.6]} 94. Kf4 {[%clk 0:00:10.9]} 94... Ke6 {[%clk 0:00:07]} 95. Kg4 {[%clk
0:00:09.4]} 95... Ra4+ {[%clk 0:00:07.5]} 96. Kg3 {[%clk 0:00:09.3]} 96... Kf5
{[%clk 0:00:08.1]} 97. h6 {[%clk 0:00:10.2]} 97... Rg4+ {[%clk 0:00:07.4]} 98.
Kh3 {[%clk 0:00:10.2]} 98... Rxg5 {[%clk 0:00:07.7]} 99. h7 {[%clk 0:00:10]}
99... Rh5+ {[%clk 0:00:08.1]} 100. Kg3 {[%clk 0:00:10.5]} 100... Rxh7 {[%clk
0:00:09]} 0-1